Cogmind - Beta 13 @@@ ROGUE MODE // 2024.04.02 @ 20:22:25 Player: Kit Redgrave Result: Self-destructed Performance ------------- Evolutions (1) 500 Regions Visited (3) 600 Robots Destroyed (29) 145 Value Destroyed (662) 662 Prototype IDs (3) 60 Alien Tech Used (0) 0 Bonus (133) 133 TOTAL SCORE: 2100 Bonus ------- Follower Combat Kills 133 Cogmind --------- Core Integrity 288/400 Matter 293/300 Energy 250/250 System Corruption 3% Temperature Cool (0) Movement Walking (190) Ox1 Location -9/Materials Parts ------- > --- POWER (1) -------- Ion Engine > --- PROPULSION (2) --- Carbon-fiber Leg Carbon-fiber Leg > --- UTILITY (4) ------ Large Storage Unit Light Armor Plating Medium Armor Plating Hacking Suite > --- WEAPON (2) ------- Heavy Assault Rifle Improved Assault Rifle > --- INVENTORY (15) --- Aluminum Leg Aluminum Leg Faulty Improved Flight Unit Experimental Sensor Array Shield Generator Beam Cannon Beam Cannon Improved Assault Rifle Improved Assault Rifle Peak State ------------ > --- POWER ------------ Improved Ion Engine > --- PROPULSION ------- Carbon-fiber Leg Carbon-fiber Leg > --- UTILITY ---------- Large Storage Unit Medium Armor Plating Hacking Suite Hacking Suite > --- WEAPON ----------- Improved EM Shotgun Heavy Assault Rifle > --- INVENTORY -------- Ion Engine Aluminum Leg Aluminum Leg Flight Unit Improved Flight Unit Experimental Sensor Array Light Armor Plating Shield Generator Improved EM Shotgun Medium Laser Beam Rifle Assault Rifle Improved Assault Rifle Improved Assault Rifle Improved Assault Rifle [Rating: 25] Favorites ----------- Power Improved Ion Engine Engine Improved Ion Engine Propulsion Aluminum Leg Leg Aluminum Leg Utility Large Storage Unit Storage Large Storage Unit Hackware Hacking Suite Protection Light Armor Plating Weapon Medium Laser Energy Gun Medium Laser Ballistic Gun Assault Rifle Build | -11 -10 -10 -9 ------- Run | Yrd Mat Min Mat Slots Evolved 2 | . . . 2 Power . | . . . . Propulsion . | . . . . Utility 2 | . . . 2 Weapon . | . . . . Parts Attached 23 | 4 5 2 12 Power 3 | 1 . 1 1 Engine 3 | 1 . 1 1 Core . | . . . . Reactor . | . . . . Propulsion 4 | 2 . . 2 Treads . | . . . . Leg 4 | 2 . . 2 Wheel . | . . . . Hover . | . . . . Flight . | . . . . Utility 8 | 1 2 1 4 Device . | . . . . Storage 2 | 1 1 . . Processor . | . . . . Hackware 2 | . . . 2 Protection 4 | . 1 1 2 Artifact . | . . . . Weapon 8 | . 3 . 5 Energy Gun 5 | . 2 . 3 Energy Cannon . | . . . . Ballistic Gun 3 | . 1 . 2 Ballistic Cannon . | . . . . Launcher . | . . . . Special Weapon . | . . . . Impact Weapon . | . . . . Slashing Weapon . | . . . . Piercing Weapon . | . . . . Special Melee Weapon . | . . . . Unidentified Prototypes 3 | . . . 3 Parts Lost 4 | . . 1 3 Power 1 | . . . 1 Propulsion . | . . . . Utility 2 | . . 1 1 Weapon 1 | . . . 1 Highest Loss Streak 3 | . . 1 3 To Critical Strikes . | . . . . Average Slot Usage (%) 93 | . 89 98 93 Engine 12 | . 14 14 11 Leg 25 | . 28 28 22 Storage 12 | . 14 14 11 Hackware 4 | . . . 9 Protection 13 | . 6 12 17 Energy Gun 12 | . 16 14 8 Ballistic Gun 12 | . 9 14 13 Naked Turns . | . . . . Heaviest Build 43 | 10 32 34 43 Greatest Support 30 | 20 20 20 30 Greatest Overweight (x) 1 | . 1 1 1 Average Overweight (x) . | . . 1 1 Largest Inventory Capacity 15 | 8 15 15 15 Average Capacity 13 | 6 11 15 15 Most Carried 15 | 5 4 5 15 Average Carried 6 | 3 2 3 10 Final Capacity 15 | 8 15 15 15 Final Carried 9 | 4 3 5 9 Class Distribution -------------------- 79% | Mutant 20% | Scavenger-Mutant Dominant Class ---------------- Mutant | -10/Materials Mutant | -10/Mines Mutant | -9/Materials Resources | -11 -10 -10 -9 ----------- Run | Yrd Mat Min Mat Matter Collected 697 | 203 141 25 328 Remotely . | . . . . Salvage Created 1116 | . 369 112 635 Parts 69 | . 19 6 44 Haulers Intercepted 4 | . 2 . 2 Recyclers Shooed . | . . . . Parts Field Recycled . | . . . . Retrieved Matter . | . . . . Parts Self-Destructed . | . . . . Prevented . | . . . . Kills | -11 -10 -10 -9 ------- Run | Yrd Mat Min Mat Combat Hostiles Destroyed 17 | . 7 2 8 Guns 16 | . 6 2 8 AOE 1 | . 1 . . Classes Destroyed 9 | . 5 1 3 Tunneler 2 | . . . 2 Hauler 4 | . 2 . 2 Recycler 2 | . . . 2 Operator 3 | . 1 . 2 Watcher 1 | . 1 . . Swarmer 3 | . 3 . . Grunt 10 | . 4 . 6 Brawler 1 | . . . 1 Sentry 3 | . . 2 1 Best Kill Streak 4 | . 3 2 4 Combat Bots Only 4 | . 3 2 4 Max Kills in Single Turn 1 | . 1 1 1 Gunslinging . | . . . . Exploded 1 | . 1 . . Melee . | . . . . Uniques/NPCs Destroyed . | . . . . Combat | -11 -10 -10 -9 -------- Run | Yrd Mat Min Mat Hostile Shots Fired 109 | . 27 12 70 Missed 21 | . 7 1 13 Damage Taken 1137 | . 248 156 733 Core 159 | . 35 12 112 Absorbed by Shields . | . . . . Core Remaining (%) 90 | 100 . 81 . Volleys Fired 96 | . 31 4 61 Largest 2 | . 2 2 2 Hottest 90 | . 90 70 73 Shots Fired 186 | . 56 8 122 Gun 186 | . 56 8 122 Cannon . | . . . . Launcher . | . . . . Special . | . . . . Kinetic 94 | . 18 4 72 Thermal 59 | . 25 4 30 Explosive . | . . . . Electromagnetic 33 | . 13 . 20 Robot Hit Streak 10 | . 7 8 10 Robot Miss Streak 4 | . 4 . 4 Penetration Max . | . . . . Secondary Targets . | . . . . Shots Hit Robots 113 | . 34 6 73 Core Hits 52 | . 18 5 29 Critical Kills . | . . . . Critical Parts Destroyed 2 | . . . 2 Critical Strikes 4 | . 1 . 3 Burn 2 | . 1 . 1 Destroy 2 | . . . 2 Melee Attacks . | . . . . Impact . | . . . . Slashing . | . . . . Piercing . | . . . . Sneak Attacks . | . . . . Combat Hostiles . | . . . . Follow-up Attacks . | . . . . Damage Inflicted 1735 | . 498 80 1157 Guns 1618 | . 436 78 1104 Cannons . | . . . . Explosions 115 | . 62 . 53 Melee . | . . . . Ramming 2 | . . 2 . Kinetic 901 | . 154 28 719 Thermal 432 | . 225 50 157 Explosive . | . . . . Electromagnetic 400 | . 119 . 281 Impact . | . . . . Slashing . | . . . . Piercing . | . . . . Highest Corruption 3 | . . . 3 Average Corruption 2 | . . . 2 Corruption Purged . | . . . . Corruption Blocked . | . . . . Effects 3 | . . . 3 Message Errors 1 | . . . 1 Matter Fused 2 | . . . 2 Overload Shots . | . . . . Overflow Damage . | . . . . Projectiles . | . . . . Explosions . | . . . . Melee . | . . . . Knockbacks . | . . . . Impact . | . . . . Kinetic . | . . . . Secondary . | . . . . Self-Inflicted Damage 78 | . 39 . 39 Shots 2 | . 1 . 1 Rammed . | . . . . Targets Rammed 2 | . . 2 . Kicked 2 | . . 2 . Crushed . | . . . . Highest Temperature 152 | . 152 99 120 Average Temperature 38 | . 54 67 27 Received Heat Transfer 477 | . 93 81 303 Siege Activations . | . . . . Robots Corrupted . | . . . . Combat Hostiles . | . . . . Parts Fried 1 | . 1 . . Impact Corruptions . | . . . . Robots Melted . | . . . . Combat Hostiles . | . . . . Parts Melted . | . . . . Heat Transferred 1173 | . 605 148 420 Parts Sabotaged . | . . . . Parts Stolen . | . . . . Parts Stripped . | . . . . Power Chain Reactions 2 | . 1 . 1 Alert | -11 -10 -10 -9 ------- Run | Yrd Mat Min Mat Peak Influence 304 | . 304 87 216 Initial 40 | . . 40 . Average 107 | . 157 69 109 Maximum Alert Level 1 | . 1 . 1 Low Security (%) 82 | 100 51 100 88 Level 1 17 | . 48 . 11 Level 2 . | . . . . Level 3 . | . . . . Level 4 . | . . . . Level 5 . | . . . . High Security . | . . . . Max Security . | . . . . Squads Dispatched 7 | . 2 1 4 Investigation 1 | . . . 1 Extermination . | . . . . Reinforcement 5 | . 2 . 3 Assault 1 | . . 1 . Garrison . | . . . . Intercept . | . . . . Searches Triggered . | . . . . Construction Impeded . | . . . . Haulers Reinforced . | . . . . Active Scanning Responses . | . . . . Cargo Convoy Interrupts . | . . . . Stealth | -11 -10 -10 -9 --------- Run | Yrd Mat Min Mat Distress Signals 2 | . 1 . 1 Communications Jammed . | . . . . Distress Signals . | . . . . Times Spotted 39 | . 14 2 23 Peak Tracking Total 5 | . 4 2 5 Tactical Retreats 2 | . 1 . 1 Traps | -11 -10 -10 -9 ------- Run | Yrd Mat Min Mat Traps Triggered 3 | . . . 3 Indirectly . | . . . . Trap Hack Attempts . | . . . . Triggered . | . . . . Disarmed . | . . . . Reprogrammed 4 | . . . 4 Reused . | . . . . Traps Extracted . | . . . . Installed . | . . . . Triggered . | . . . . Machines | -11 -10 -10 -9 ---------- Run | Yrd Mat Min Mat Machines Disabled 1 | . 1 . . Max in Single Turn 1 | . 1 . . Machines Repaired . | . . . . Machines Dismantled . | . . . . Machines Sabotaged . | . . . . Overloaded Fab Kills . | . . . . Hacking | -11 -10 -10 -9 --------- Run | Yrd Mat Min Mat Machines Accessed 2 | . . . 2 Terminals 2 | . . . 2 Fabricators . | . . . . Repair Stations . | . . . . Recycling Units . | . . . . Scanalyzers . | . . . . Garrison Access . | . . . . Total Hacks 7 | . . . 7 Successful 4 | . . . 4 Failed 3 | . . . 3 Catastrophic 1 | . . . 1 Database Lockouts . | . . . . Manual 4 | . . . 4 Terminals 7 | . . . 7 Fabricators . | . . . . Repair Stations . | . . . . Recycling Units . | . . . . Scanalyzers . | . . . . Garrison Access . | . . . . Terminal Hacks 4 | . . . 4 Reprogram Traps 1 | . . . 1 Dispatch Records 1 | . . . 1 Maintenance Status 1 | . . . 1 Zone Layout 1 | . . . 1 Fabricator Hacks . | . . . . Repair Station Hacks . | . . . . Recycling Unit Hacks . | . . . . Scanalyzer . | . . . . Garrison Access Hacks . | . . . . Unauthorized Hacks . | . . . . Terminals . | . . . . Fabricators . | . . . . Repair Stations . | . . . . Recycling Units . | . . . . Scanalyzers . | . . . . Garrison Access . | . . . . Data Cores Recovered . | . . . . Used . | . . . . Hacking Detections 2 | . . . 2 Full Trace Events . | . . . . Feedback Events . | . . . . Feedback Blocked . | . . . . Robot Schematics Acquired . | . . . . Robots Built . | . . . . Authchips . | . . . . Time . | . . . . Total Robot Build Rating . | . . . . Part Schematics Acquired . | . . . . Parts Built . | . . . . Authchips . | . . . . Time . | . . . . Total Part Build Rating . | . . . . Parts Repaired . | . . . . Time . | . . . . Parts Recycled . | . . . . Recycled Matter . | . . . . Retrieved Matter . | . . . . Retrieved Components . | . . . . Parts Scanalyzed . | . . . . Part Schematics Acquired . | . . . . Parts Damaged . | . . . . Bothacking | -11 -10 -10 -9 ------------ Run | Yrd Mat Min Mat Used RIF Installer . | . . . . Robots Hacked . | . . . . Non-combat . | . . . . Combat . | . . . . Robot Hacks Applied . | . . . . Relay Couplers Released . | . . . . Fabnet Peak Effective % . | . . . . Robots Rewired . | . . . . Allies Hacked . | . . . . Hacks Repelled . | . . . . Allies | -11 -10 -10 -9 -------- Run | Yrd Mat Min Mat Total Allies 1 | . . 1 . Largest Group 1 | . . 1 1 Highest-Rated Group 31 | . . 31 31 Highest-Rated Ally 31 | . . 31 31 Total Orders . | . . . . Ally Attacks 21 | . . . 21 Total Damage 331 | . . . 331 Kills 5 | . . . 5 Allies Corrupted . | . . . . Allies Melted . | . . . . Intel | -11 -10 -10 -9 ------- Run | Yrd Mat Min Mat Robot Analysis Total . | . . . . Derelict Logs Recovered . | . . . . Drone Launches . | . . . . Drone Recoveries . | . . . . Exploration | -11 -10 -10 -9 ------------- Run | Yrd Mat Min Mat Turns Passed 1926 | 98 501 438 889 Spaces Moved 880 | 76 246 218 340 Core 6 | 6 . . . Treads . | . . . . Legs 874 | 70 246 218 340 Wheels . | . . . . Hover . | . . . . Flight . | . . . . Fastest Speed 50 | 50 120 190 190 Average Speed 173 | 114 153 190 190 Slowest Speed 190 | 120 190 190 190 Overloaded Moves . | . . . . Propulsion Burnouts . | . . . . Robots Hopped 1 | . . . 1 Cave-ins Triggered . | . . . . Exploration Rate (%) 34 | 5 50 50 34 Regions Visited 3 Branch Regions 1 Pre-discovered Areas . | . . . . Known Exits Taken . | . . . . Unknown Exits Taken 3 | 1 1 1 . Scrap Searched 1 | . . 1 . Spaces Dug . | . . . . Terrain Destroyed 4 | . 2 . 2 Melee . | . . . . Projectile . | . . . . AOE 4 | . 2 . 2 Terrain Rammed . | . . . . Walls Destroyed . | . . . . Machines Disabled . | . . . . Actions | -11 -10 -10 -9 --------- Run | Yrd Mat Min Mat Total 1095 | 87 314 233 461 Wait 54 | . 29 1 24 Move 875 | 75 245 217 338 Hop 1 | . . . 1 Pick Up 33 | 8 3 5 17 Fast Attach . | . . . . Attach 15 | 4 4 1 6 Detach . | . . . . Swap 8 | . 1 1 6 Drop 11 | . 1 2 8 Fire 96 | . 31 4 61 Melee . | . . . . Ram . | . . . . Kick 2 | . . 2 . Crush . | . . . . Escape Stasis . | . . . . Rewire . | . . . . Trap . | . . . . Miscellaneous . | . . . . Route ------- -11/Scrapyard -10/Materials (discovered 2 exits: *Mat / [*Min]) -10/Mines -9/Materials (discovered 1 exit: [*Mat]) History --------- Turn | Location | Event 29 | -11/Scrapyard | Discovered new exit (range 16) 99 | -11/Scrapyard | Entered Materials 293 | -10/Materials | Discovered new exit (range 16) 308 | -10/Materials | Build established: Mutant 381 | -10/Materials | Discovered new exit (range 8) 600 | -10/Materials | Entered Mines 957 | -10/Mines | Found a damaged Exp. Sensor Array with a note attached 965 | -10/Mines | Found Prototype Device 1012 | -10/Mines | Met a Derelict testing a Signal Generator 1027 | -10/Mines | Discovered new exit (range 7) 1038 | -10/Mines | Entered Materials 1038 | -9/Materials | Accompanied by 1 ally 1038 | -9/Materials | Evolved 2 slots: Utility x2 1615 | -9/Materials | Build established: Scavenger-Mutant 1796 | -9/Materials | Lost 3 parts (1p1u1w) 1886 | -9/Materials | Discovered new exit (range 10) 1927 | -9/Materials | Self-destructed Last Messages --------------- 01788_ T-07 Excavator is excavating. 01789_ Acquired Aluminum Leg. 01790_ Acquired 70 matter. 01792_ T-07 Excavator is excavating. 01793_ K-01 Serf collects debris. 01795_ Acquired 10 matter. 01797_ K-01 Serf collects debris. 01831_ Acquired Beam Cannon. 01832_ System corrupted: Matter fused (-7). 01834_ Dropped Aluminum Leg. 01835_ Dropped Flight Unit. 01835_ Dropped Beam Rifle. 01838_ Acquired Beam Cannon. 01839_ Dropped Assault Rifle. 01839_ Dropped Med. Laser. 01840_ Dropped Imp. EM Shotgun. 01856_ R-06 Scavenger collects Flight Unit. 01878_ Connecting with Terminal... 01886_ EXIT=FOUND 01927_ Connecting with Scanalyzer... Map ----- +----------------------------------------------------+ | #?????????# # # #??????? | | #?????????# # # #??????? | | #?????????# # [[ # = ! #??????? | | #?????????# +=[] ########??????? | | #?????????# #=]] #?????????????? | | #?????????# #[= #?????????????? | | #?????????# ######?????????????? | | ####?????????# # #?????????????? | | #?????????# #"" #?????????????? | | " #?????????# #"" #?????????????? | | T #?????????# #"T #?????????????? | | " #?????????# #"" #?????????????? | | #?????????# #"" #?????????????? | | #?????????# # #??#####??????? | | #?????????# + #?? #??????? | | ???#?????????# # #? #??????? | | ?????????????# ###+##? #??????? | | ?????????????# # [][ #??????? | | ?????????????# # [][ #??????? | | ?????????????# + [[[ #??????? | | ?????????????###### ########??????? | | ??????????????#[[ # = #??????? | | ??????????????#[[ # #??????? | | ??????????????#!! # "" #??????? | | ??????????????#!! + """ #??????? | | ??????????????#// < # @S" #??????? | | ??????????????#// # #??????? | | ??????????????################??????? | | ????????????????????????????????????? | | ????????????????????????????????????? | | ????????????????????????????????????? | | ????????????????????????????????????? | | ????????????????????????????????????? | | ????????????????????????????????????? | | ????????????????????????????????????? | | ????????????????????????????????????? | | ????????????????????????????????????? | | | | | | | | | | | | | | | | | | | | | | | | | | | +----------------------------------------------------+ Best States ------------- Heat Dissipation 28 Energy Generation 12 Energy Capacity 265 Matter Stores 300 Matter Capacity 300 Sight Range 16 Terrain Scan Density 10 Armor Coverage 375 Evasion (%) 55 Offensive Hacking 20 Item Schematics ----------------- None Robot Schematics ------------------ None Fabricated ------------ Nothing Alien Tech Used ----------------- None Achievements -------------- None Challenges ------------ None Game ------ Seed PoweredGodFlightbrick Manual? 0 Play Time 00:28:14 Cumulative 2.7 hours Start 2024.04.02 @ 19:56:26 End 2024.04.02 @ 20:22:25 Sessions 1 Manual Loads 0 Difficulty Rogue Special Mode None Game No. 9 Rogue 9 Adventurer 0 Explorer 0 Win Type - Total 0 Types 0/0/0/0/0/0/0/0/0 Lore% 10 Gallery% 8 Achievement% 9 Wizard Run 0 Options --------- Layout 0 ASCII 0 Keyboard 0 Movement Mouse Keybinds 0 Fullscreen 1 Font 24/Terminus Map View 113x50 Zoom Use 0% Tactical HUD 1 Map Filters NONE Filters NONE Steam 1 RUN: 3dfa91b8-42c6-434c-9e44-dd4ec98c501e